{"text_format":"3","workbook":"xlsx","n_sheets":2,"sheets":["START","PERSONLIGT MÅNEDLIGT BUDGET"],"read":"whole","date_system":"1900"}

{"sheet":"START","index":0,"n_rows":7,"n_cols":2,"rows_kept":7}
[null,"OM DENNE SKABELON"]
[null,"Brug dette regneark med et personligt månedligt budget til at holde styr på dine forventede og faktiske månedlige indtægter samt forventede og faktiske udgifter."]
[null,"Angiv udgifter i de forskellige kategorier i deres respektive tabeller."]
[null,"Forventet saldo, faktisk saldo og forskel beregnes automatisk."]
[null,"Bemærk! "]
[null,"Der er yderligere vejledning at finde i kolonne A i regnearket PERSONLIGT MÅNEDLIGT BUDGET. Denne tekst er skjult med vilje. Du kan fjerne tekst ved at markere kolonne A og derefter vælge Slet. For ikke længere at skjule tekst skal du markere kolonne A og derefter ændre skriftfarven."]
[null,"Hvis du vil vide mere om tabellerne i regnearket, skal du trykke på Skift og derefter F10, mens du er i en tabel, vælge indstillingen TABEL og derefter vælge ALTERNATIV TEKST."]

{"sheet":"PERSONLIGT MÅNEDLIGT BUDGET","index":1,"n_rows":64,"n_cols":10,"rows_kept":64,"merged":[[3,1,5,1],[3,2,3,3],[3,6,4,8],[3,9,4,9],[4,2,4,3],[5,2,5,3],[5,6,6,8],[5,9,6,9],[7,1,9,1],[7,2,7,3],[7,6,8,8],[7,9,8,9],[8,2,8,3],[9,2,9,3],[22,6,22,9],[23,1,23,4],[31,6,31,9],[33,1,33,4],[38,6,38,9],[40,1,40,4],[44,6,44,9],[46,1,46,4],[50,6,50,9],[54,1,54,4],[57,6,57,9],[58,6,59,8],[58,9,59,9],[60,6,61,8],[60,9,61,9],[62,6,63,8],[62,9,63,9],[64,1,64,4]]}
["Opret et personligt månedligt budget i dette regneark. I cellerne i denne kolonne vises en udførlig vejledning i, hvordan man bruger dette regneark. Pil ned for at starte."]
["Titlen på dette regneark vises i cellen til højre. Den næste vejledning er i celle A4.","PERSONLIGT MÅNEDLIGT BUDGET"]
[]
["Mærkaten for forventet månedlig indtægt er i cellen til højre. Angiv indtægt 1 i celle E4 og yderligere indtægt i E5 for at beregne samlet månedlig indtægt i E6. Den næste vejledning er i celle A6.","FORVENTET MÅNEDLIG INDTÆGT","Indtægt 1",null,{"v":4300,"d":"kr. 4,300.00"},null,"FORVENTET SALDO \n(Forventede indtægter minus udgifter)",null,null,{"$f":"E6-J59","v":{"v":3405,"d":"kr. 3,405.00"}}]
[null,null,"Yderligere indtægt",null,{"v":300,"d":"kr. 300.00"}]
["Forventet saldo beregnes automatisk i celle J4, faktisk saldo i J6 og forskel i J8 automatisk. Den næste vejledning er i celle A8.",null,"Samlet månedlig indtægt",null,{"$f":"SUM(E4:E5)","v":{"v":4600,"d":"kr. 4,600.00"}},null,"FAKTISK SALDO \n(Faktiske indtægter minus udgifter)",null,null,{"$f":"E10-J61","v":{"v":3064,"d":"kr. 3,064.00"}}]
[]
["Mærkaten for faktisk månedlig indtægt er i cellen til højre. Angiv indtægt 1 i celle E8 og yderligere indtægt i E9 for at beregne samlet månedlig indtægt i E10. Den næste vejledning er i celle A12.","FAKTISK MÅNEDLIG INDTÆGT","Indtægt 1",null,{"v":4000,"d":"kr. 4,000.00"},null,"FORSKEL \n(Faktisk minus forventet)",null,null,{"$f":"J6-J4","v":{"v":-341,"d":"kr. -341.00"}}]
[null,null,"Yderligere indtægt",null,{"v":300,"d":"kr. 300.00"}]
[null,null,"Samlet månedlig indtægt",null,{"$f":"SUM(E8:E9)","v":{"v":4300,"d":"kr. 4,300.00"}}]
[]
["Angiv oplysninger i tabellen Bolig, der begynder i cellen til højre, og i tabellen Underholdning, der begynder i celle G12. Den næste vejledning er i celle A25.","BOLIG","Forventet pris","Faktisk pris","Forskel",null,"UNDERHOLDNING","Forventet pris","Faktisk pris","Forskel"]
[null,"Realkreditlån eller husleje",{"v":1000,"d":"kr. 1,000.00"},{"v":1000,"d":"kr. 1,000.00"},{"$f":"Bolig[[#This Row],[Forventet pris]]-Bolig[[#This Row],[Faktisk pris]]","v":{"v":0,"d":"kr. 0.00"}},null,"Video/dvd",null,null,{"$f":"Underholdning[[#This Row],[Forventet pris]]-Underholdning[[#This Row],[Faktisk pris]]","v":{"v":0,"d":"kr. 0.00"}}]
[null,"Telefonnummer",{"v":54,"d":"kr. 54.00"},{"v":100,"d":"kr. 100.00"},{"$f":"Bolig[[#This Row],[Forventet pris]]-Bolig[[#This Row],[Faktisk pris]]","v":{"v":-46,"d":"-kr. 46.00"}},null,"Cd'er",null,null,{"$f":"Underholdning[[#This Row],[Forventet pris]]-Underholdning[[#This Row],[Faktisk pris]]","v":{"v":0,"d":"kr. 0.00"}}]
[null,"El",{"v":44,"d":"kr. 44.00"},{"v":56,"d":"kr. 56.00"},{"$f":"Bolig[[#This Row],[Forventet pris]]-Bolig[[#This Row],[Faktisk pris]]","v":{"v":-12,"d":"-kr. 12.00"}},null,"Film",null,null,{"$f":"Underholdning[[#This Row],[Forventet pris]]-Underholdning[[#This Row],[Faktisk pris]]","v":{"v":0,"d":"kr. 0.00"}}]
[null,"Benzin",{"v":22,"d":"kr. 22.00"},{"v":28,"d":"kr. 28.00"},{"$f":"Bolig[[#This Row],[Forventet pris]]-Bolig[[#This Row],[Faktisk pris]]","v":{"v":-6,"d":"-kr. 6.00"}},null,"Koncerter",null,null,{"$f":"Underholdning[[#This Row],[Forventet pris]]-Underholdning[[#This Row],[Faktisk pris]]","v":{"v":0,"d":"kr. 0.00"}}]
[null,"Vand og kloak",{"v":8,"d":"kr. 8.00"},{"v":8,"d":"kr. 8.00"},{"$f":"Bolig[[#This Row],[Forventet pris]]-Bolig[[#This Row],[Faktisk pris]]","v":{"v":0,"d":"kr. 0.00"}},null,"Sportsbegivenheder",null,null,{"$f":"Underholdning[[#This Row],[Forventet pris]]-Underholdning[[#This Row],[Faktisk pris]]","v":{"v":0,"d":"kr. 0.00"}}]
[null,"Tv-pakke",{"v":34,"d":"kr. 34.00"},{"v":34,"d":"kr. 34.00"},{"$f":"Bolig[[#This Row],[Forventet pris]]-Bolig[[#This Row],[Faktisk pris]]","v":{"v":0,"d":"kr. 0.00"}},null,"Live teater",null,null,{"$f":"Underholdning[[#This Row],[Forventet pris]]-Underholdning[[#This Row],[Faktisk pris]]","v":{"v":0,"d":"kr. 0.00"}}]
[null,"Bortskaffelse af affald",{"v":10,"d":"kr. 10.00"},{"v":10,"d":"kr. 10.00"},{"$f":"Bolig[[#This Row],[Forventet pris]]-Bolig[[#This Row],[Faktisk pris]]","v":{"v":0,"d":"kr. 0.00"}},null,"Andet",null,null,{"$f":"Underholdning[[#This Row],[Forventet pris]]-Underholdning[[#This Row],[Faktisk pris]]","v":{"v":0,"d":"kr. 0.00"}}]
[null,"Vedligeholdelse eller reparation",{"v":23,"d":"kr. 23.00"},{"v":0,"d":"kr. 0.00"},{"$f":"Bolig[[#This Row],[Forventet pris]]-Bolig[[#This Row],[Faktisk pris]]","v":{"v":23,"d":"kr. 23.00"}},null,"Andet",null,null,{"$f":"Underholdning[[#This Row],[Forventet pris]]-Underholdning[[#This Row],[Faktisk pris]]","v":{"v":0,"d":"kr. 0.00"}}]
[null,"Forsyninger",{"v":0,"d":"kr. 0.00"},{"v":0,"d":"kr. 0.00"},{"$f":"Bolig[[#This Row],[Forventet pris]]-Bolig[[#This Row],[Faktisk pris]]","v":{"v":0,"d":"kr. 0.00"}},null,"Andet",null,null,{"$f":"Underholdning[[#This Row],[Forventet pris]]-Underholdning[[#This Row],[Faktisk pris]]","v":{"v":0,"d":"kr. 0.00"}}]
[null,"Andet",{"v":0,"d":"kr. 0.00"},{"v":0,"d":"kr. 0.00"},{"$f":"Bolig[[#This Row],[Forventet pris]]-Bolig[[#This Row],[Faktisk pris]]","v":{"v":0,"d":"kr. 0.00"}},null,"Subtotal",null,null,{"$f":"SUBTOTAL(109,Underholdning[Forskel])","v":{"v":0,"d":"kr. 0.00"}}]
[null,"Subtotal",null,null,{"$f":"SUBTOTAL(109,Bolig[Forskel])","v":{"v":-41,"d":"-kr. 41.00"}}]
[{"$nulls":6},"LÅN","Forventet pris","Faktisk pris","Forskel"]
["Angiv oplysninger i tabellen Transport, der begynder i cellen til højre, og i tabellen Lån, der begynder i celle G24. Den næste vejledning er i celle A35.","TRANSPORT","Forventet pris","Faktisk pris","Forskel",null,"Privat",null,null,{"$f":"Lån[[#This Row],[Forventet pris]]-Lån[[#This Row],[Faktisk pris]]","v":{"v":0,"d":"kr. 0.00"}}]
[null,"Afbetaling af køretøj",null,null,{"$f":"Transport[[#This Row],[Forventet pris]]-Transport[[#This Row],[Faktisk pris]]","v":{"v":0,"d":"kr. 0.00"}},null,"Studerende",null,null,{"$f":"Lån[[#This Row],[Forventet pris]]-Lån[[#This Row],[Faktisk pris]]","v":{"v":0,"d":"kr. 0.00"}}]
[null,"Udgifter til bus/taxa",null,null,{"$f":"Transport[[#This Row],[Forventet pris]]-Transport[[#This Row],[Faktisk pris]]","v":{"v":0,"d":"kr. 0.00"}},null,"Kreditkort",null,null,{"$f":"Lån[[#This Row],[Forventet pris]]-Lån[[#This Row],[Faktisk pris]]","v":{"v":0,"d":"kr. 0.00"}}]
[null,"Forsikring",null,null,{"$f":"Transport[[#This Row],[Forventet pris]]-Transport[[#This Row],[Faktisk pris]]","v":{"v":0,"d":"kr. 0.00"}},null,"Kreditkort",null,null,{"$f":"Lån[[#This Row],[Forventet pris]]-Lån[[#This Row],[Faktisk pris]]","v":{"v":0,"d":"kr. 0.00"}}]
[null,"Licens",null,null,{"$f":"Transport[[#This Row],[Forventet pris]]-Transport[[#This Row],[Faktisk pris]]","v":{"v":0,"d":"kr. 0.00"}},null,"Kreditkort",null,null,{"$f":"Lån[[#This Row],[Forventet pris]]-Lån[[#This Row],[Faktisk pris]]","v":{"v":0,"d":"kr. 0.00"}}]
[null,"Brændstof",null,null,{"$f":"Transport[[#This Row],[Forventet pris]]-Transport[[#This Row],[Faktisk pris]]","v":{"v":0,"d":"kr. 0.00"}},null,"Andet",null,null,{"$f":"Lån[[#This Row],[Forventet pris]]-Lån[[#This Row],[Faktisk pris]]","v":{"v":0,"d":"kr. 0.00"}}]
[null,"Vedligeholdelse",null,null,{"$f":"Transport[[#This Row],[Forventet pris]]-Transport[[#This Row],[Faktisk pris]]","v":{"v":0,"d":"kr. 0.00"}},null,"Subtotal",null,null,{"$f":"SUBTOTAL(109,Lån[Forskel])","v":{"v":0,"d":"kr. 0.00"}}]
[null,"Andet",null,null,{"$f":"Transport[[#This Row],[Forventet pris]]-Transport[[#This Row],[Faktisk pris]]","v":{"v":0,"d":"kr. 0.00"}}]
[null,"Subtotal",null,null,{"$f":"SUBTOTAL(109,Transport[Forskel])","v":{"v":0,"d":"kr. 0.00"}},null,"SKAT","Forventet pris","Faktisk pris","Forskel"]
[{"$nulls":6},"National",null,null,{"$f":"Skat[[#This Row],[Forventet pris]]-Skat[[#This Row],[Faktisk pris]]","v":{"v":0,"d":"kr. 0.00"}}]
["Angiv oplysninger i tabellen Forsikring, der begynder i cellen til højre, og i tabellen Skat, der begynder i celle G33. Den næste vejledning er i celle A42.","FORSIKRING","Forventet pris","Faktisk pris","Forskel",null,"Regional",null,null,{"$f":"Skat[[#This Row],[Forventet pris]]-Skat[[#This Row],[Faktisk pris]]","v":{"v":0,"d":"kr. 0.00"}}]
[null,"Hus",null,null,{"$f":"Forsikring[[#This Row],[Forventet pris]]-Forsikring[[#This Row],[Faktisk pris]]","v":{"v":0,"d":"kr. 0.00"}},null,"Lokal",null,null,{"$f":"Skat[[#This Row],[Forventet pris]]-Skat[[#This Row],[Faktisk pris]]","v":{"v":0,"d":"kr. 0.00"}}]
[null,"Sundhed",null,null,{"$f":"Forsikring[[#This Row],[Forventet pris]]-Forsikring[[#This Row],[Faktisk pris]]","v":{"v":0,"d":"kr. 0.00"}},null,"Andet",null,null,{"$f":"Skat[[#This Row],[Forventet pris]]-Skat[[#This Row],[Faktisk pris]]","v":{"v":0,"d":"kr. 0.00"}}]
[null,"Liv",null,null,{"$f":"Forsikring[[#This Row],[Forventet pris]]-Forsikring[[#This Row],[Faktisk pris]]","v":{"v":0,"d":"kr. 0.00"}},null,"Subtotal",null,null,{"$f":"SUBTOTAL(109,Skat[Forskel])","v":{"v":0,"d":"kr. 0.00"}}]
[null,"Andet",null,null,{"$f":"Forsikring[[#This Row],[Forventet pris]]-Forsikring[[#This Row],[Faktisk pris]]","v":{"v":0,"d":"kr. 0.00"}}]
[null,"Subtotal",null,null,{"$f":"SUBTOTAL(109,Forsikring[Forskel])","v":{"v":0,"d":"kr. 0.00"}},null,"OPSPARINGER ELLER INVESTERINGER","Forventet pris","Faktisk pris","Forskel"]
[{"$nulls":6},"Pensionskonto",null,null,{"$f":"Opsparing[[#This Row],[Forventet pris]]-Opsparing[[#This Row],[Faktisk pris]]","v":{"v":0,"d":"kr. 0.00"}}]
["Angiv oplysninger i tabellen Mad, der begynder i cellen til højre, og i tabellen Opsparing, der begynder i celle G40. Den næste vejledning er i celle A48.","MAD","Forventet pris","Faktisk pris","Forskel",null,"Investeringskonto",null,null,{"$f":"Opsparing[[#This Row],[Forventet pris]]-Opsparing[[#This Row],[Faktisk pris]]","v":{"v":0,"d":"kr. 0.00"}}]
[null,"Dagligvarer",null,null,{"$f":"Mad[[#This Row],[Forventet pris]]-Mad[[#This Row],[Faktisk pris]]","v":{"v":0,"d":"kr. 0.00"}},null,"Andet",null,null,{"$f":"Opsparing[[#This Row],[Forventet pris]]-Opsparing[[#This Row],[Faktisk pris]]","v":{"v":0,"d":"kr. 0.00"}}]
[null,"Mad på restaurant",null,null,{"$f":"Mad[[#This Row],[Forventet pris]]-Mad[[#This Row],[Faktisk pris]]","v":{"v":0,"d":"kr. 0.00"}},null,"Subtotal",null,null,{"$f":"SUBTOTAL(109,Opsparing[Forskel])","v":{"v":0,"d":"kr. 0.00"}}]
[null,"Andet",null,null,{"$f":"Mad[[#This Row],[Forventet pris]]-Mad[[#This Row],[Faktisk pris]]","v":{"v":0,"d":"kr. 0.00"}}]
[null,"Subtotal",null,null,{"$f":"SUBTOTAL(109,Mad[Forskel])","v":{"v":0,"d":"kr. 0.00"}},null,"GAVER OG BIDRAG","Forventet pris","Faktisk pris","Forskel"]
[{"$nulls":6},"Velgørenhed 1",null,null,{"$f":"Gaver[[#This Row],[Forventet pris]]-Gaver[[#This Row],[Faktisk pris]]","v":{"v":0,"d":"kr. 0.00"}}]
["Angiv oplysninger i tabellen Kæledyr, der begynder i cellen til højre, og i tabellen Gaver, der begynder i celle G46. Den næste vejledning er i celle A56.","KÆLEDYR","Forventet pris","Faktisk pris","Forskel",null,"Velgørenhed 2",null,null,{"$f":"Gaver[[#This Row],[Forventet pris]]-Gaver[[#This Row],[Faktisk pris]]","v":{"v":0,"d":"kr. 0.00"}}]
[null,"Mad",null,null,{"$f":"Kæledyr[[#This Row],[Forventet pris]]-Kæledyr[[#This Row],[Faktisk pris]]","v":{"v":0,"d":"kr. 0.00"}},null,"Velgørenhed 3",null,null,{"$f":"Gaver[[#This Row],[Forventet pris]]-Gaver[[#This Row],[Faktisk pris]]","v":{"v":0,"d":"kr. 0.00"}}]
[null,"Sundhed",null,null,{"$f":"Kæledyr[[#This Row],[Forventet pris]]-Kæledyr[[#This Row],[Faktisk pris]]","v":{"v":0,"d":"kr. 0.00"}},null,"Subtotal",null,null,{"$f":"SUBTOTAL(109,Gaver[Forskel])","v":{"v":0,"d":"kr. 0.00"}}]
[null,"Pleje",null,null,{"$f":"Kæledyr[[#This Row],[Forventet pris]]-Kæledyr[[#This Row],[Faktisk pris]]","v":{"v":0,"d":"kr. 0.00"}}]
[null,"Legetøj",null,null,{"$f":"Kæledyr[[#This Row],[Forventet pris]]-Kæledyr[[#This Row],[Faktisk pris]]","v":{"v":0,"d":"kr. 0.00"}},null,"JURIDISK","Forventet pris","Faktisk pris","Forskel"]
[null,"Andet",null,null,{"$f":"Kæledyr[[#This Row],[Forventet pris]]-Kæledyr[[#This Row],[Faktisk pris]]","v":{"v":0,"d":"kr. 0.00"}},null,"Advokat",null,null,{"$f":"Juridisk[[#This Row],[Forventet pris]]-Juridisk[[#This Row],[Faktisk pris]]","v":{"v":0,"d":"kr. 0.00"}}]
[null,"Subtotal",null,null,{"$f":"SUBTOTAL(109,Kæledyr[Forskel])","v":{"v":0,"d":"kr. 0.00"}},null,"Underholdsbidrag",null,null,{"$f":"Juridisk[[#This Row],[Forventet pris]]-Juridisk[[#This Row],[Faktisk pris]]","v":{"v":0,"d":"kr. 0.00"}}]
[{"$nulls":6},"Betalinger ved tilbageholdelsesret eller vurdering",null,null,{"$f":"Juridisk[[#This Row],[Forventet pris]]-Juridisk[[#This Row],[Faktisk pris]]","v":{"v":0,"d":"kr. 0.00"}}]
["Angiv oplysninger i tabellen Personlig pleje, der begynder i cellen til højre, og i tabellen Juridisk, der begynder i celle G52. Den næste vejledning er i celle A59.","PERSONLIG PLEJE","Forventet pris","Faktisk pris","Forskel",null,"Andet",null,null,{"$f":"Juridisk[[#This Row],[Forventet pris]]-Juridisk[[#This Row],[Faktisk pris]]","v":{"v":0,"d":"kr. 0.00"}}]
[null,"Sundhed",null,null,{"$f":"PersonligPleje[[#This Row],[Forventet pris]]-PersonligPleje[[#This Row],[Faktisk pris]]","v":{"v":0,"d":"kr. 0.00"}},null,"Subtotal",null,null,{"$f":"SUBTOTAL(109,Juridisk[Forskel])","v":{"v":0,"d":"kr. 0.00"}}]
[null,"Hår/negle",null,null,{"$f":"PersonligPleje[[#This Row],[Forventet pris]]-PersonligPleje[[#This Row],[Faktisk pris]]","v":{"v":0,"d":"kr. 0.00"}}]
["Samlede forventede udgifter beregnes automatisk i celle J59, samlede faktiske udgifter i J61 og samlede forskel i J63.","Beklædning",null,null,{"$f":"PersonligPleje[[#This Row],[Forventet pris]]-PersonligPleje[[#This Row],[Faktisk pris]]","v":{"v":0,"d":"kr. 0.00"}},null,"SAMLEDE FORVENTEDE UDGIFTER",null,null,{"$f":"SUBTOTAL(109,Bolig[Forventet pris],Transport[Forventet pris],Forsikring[Forventet pris],Mad[Forventet pris],Kæledyr[Forventet pris],PersonligPleje[Forventet pris],Underholdning[Forventet pris],Lån[Forventet pris],Skat[Forventet pris],Opsparing[Forventet pris],Gaver[Forventet pris],Juridisk[Forventet pris])","v":{"v":1195,"d":"kr. 1,195.00"}}]
[null,"Tøjrens",null,null,{"$f":"PersonligPleje[[#This Row],[Forventet pris]]-PersonligPleje[[#This Row],[Faktisk pris]]","v":{"v":0,"d":"kr. 0.00"}}]
[null,"Fitnesscenter",null,null,{"$f":"PersonligPleje[[#This Row],[Forventet pris]]-PersonligPleje[[#This Row],[Faktisk pris]]","v":{"v":0,"d":"kr. 0.00"}},null,"SAMLEDE FAKTISKE UDGIFTER",null,null,{"$f":"SUBTOTAL(109,Bolig[Faktisk pris],Transport[Faktisk pris],Forsikring[Faktisk pris],Mad[Faktisk pris],Kæledyr[Faktisk pris],PersonligPleje[Faktisk pris],Underholdning[Faktisk pris],Lån[Faktisk pris],Skat[Faktisk pris],Opsparing[Faktisk pris],Gaver[Faktisk pris],Juridisk[Faktisk pris])","v":{"v":1236,"d":"kr. 1,236.00"}}]
[null,"Gebyrer eller kontingenter til organisationer",null,null,{"$f":"PersonligPleje[[#This Row],[Forventet pris]]-PersonligPleje[[#This Row],[Faktisk pris]]","v":{"v":0,"d":"kr. 0.00"}}]
[null,"Andet",null,null,{"$f":"PersonligPleje[[#This Row],[Forventet pris]]-PersonligPleje[[#This Row],[Faktisk pris]]","v":{"v":0,"d":"kr. 0.00"}},null,"SAMLET FORSKEL",null,null,{"$f":"J59-J61","v":{"v":-41,"d":"kr. -41.00"}}]
[null,"Subtotal",null,null,{"$f":"SUBTOTAL(109,PersonligPleje[Forskel])","v":{"v":0,"d":"kr. 0.00"}}]